bitfinex/quotes_BTCUSD_20240730
["timestamp","ask_amount","ask_price","bid_price","bid_amount"]
[1722303219551,0.74236092,66853.0,66852.0,0.00015]
[1722303219958,0.69333191,66853.0,66852.0,0.00015]
[1722303220173,0.74236322,66853.0,66852.0,0.00015]
[1722303220363,0.68318831,66853.0,66852.0,0.00015]
[1722303221584,0.70665126,66853.0,66852.0,0.00015]
[1722303221785,0.68318831,66853.0,66852.0,0.00015]
[1722303224489,0.92251931,66853.0,66852.0,0.00015]
[1722303224692,1.07396339,66853.0,66852.0,0.00015]
[1722303225251,1.09742656,66853.0,66852.0,0.00015]
[1722303225546,1.21319709,66853.0,66852.0,0.00015]
[1722303225772,1.06175301,66853.0,66852.0,0.00015]
[1722303226057,1.06202065,66853.0,66852.0,0.00015]
[1722303226305,0.92278695,66853.0,66852.0,0.00015]
[1722303226510,0.68345595,66853.0,66852.0,0.00015]
[1722303227795,0.83491109,66853.0,66852.0,0.00015]
[1722303227939,0.68345595,66853.0,66852.0,0.00015]
[1722303228755,0.70691904,66853.0,66852.0,0.00015]
[1722303228960,0.68345595,66853.0,66852.0,0.00015]
[1722303229164,0.68461657,66853.0,66852.0,0.00015]
[1722303232279,0.65762001,66853.0,66852.0,0.00015]
[1722303232483,0.70827407,66853.0,66852.0,0.00015]
[1722303233199,0.84041512,66853.0,66852.0,0.00015]
[1722303234998,1.06285615,66853.0,66852.0,0.00015]
[1722303235370,1.30218715,66853.0,66852.0,0.00015]
[1722303235579,1.16639206,66853.0,66852.0,0.00015]
[1722303235782,1.41060142,66853.0,66852.0,0.00015]
[1722303235915,1.37713841,66853.0,66852.0,0.00015]
[1722303236733,1.38713841,66853.0,66852.0,0.00015]
[1722303238073,1.38713841,66853.0,66846.0,0.000913]
[1722303238074,1.001503,66847.0,66846.0,0.000913]
[1722303238273,1.001503,66847.0,66831.0,0.1429]
[1722303238274,0.359071,66839.0,66838.0,0.00130757]
[1722303238603,0.91069049,66839.0,66838.0,0.00130757]
[1722303238813,0.91044137,66839.0,66838.0,0.00130757]
[1722303239159,0.837844,66838.0,66831.0,0.1429]
[1722303239509,1.54467046,66838.0,66830.0,0.009262]
[1722303239712,1.4597083,66838.0,66830.0,0.009262]
[1722303239870,1.4597083,66838.0,66831.0,0.00130757]
[1722303239871,1.53497186,66838.0,66831.0,0.00130757]
[1722303240273,1.53497186,66838.0,66830.0,0.009262]
[1722303240274,1.29758786,66838.0,66830.0,0.009262]
[1722303240815,1.29758786,66838.0,66831.0,0.00130757]
[1722303240979,0.53368437,66838.0,66837.0,0.088362]
[1722303241172,0.41014871,66838.0,66837.0,0.17343816]
[1722303241402,0.41014871,66838.0,66837.0,0.088362]
[1722303241626,0.64953271,66838.0,66837.0,0.088362]
[1722303241836,0.41014871,66838.0,66837.0,0.098091]
[1722303242037,0.06507271,66838.0,66837.0,0.088362]
[1722303242214,0.19377134,66838.0,66837.0,0.23353816]
[1722303242416,0.5537005,66838.0,66837.0,0.23353816]
[1722303242616,0.55394234,66838.0,66837.0,0.158191]
[1722303242843,0.44539718,66838.0,66837.0,0.158191]
[1722303243040,0.43139718,66838.0,66837.0,0.158191]
[1722303243242,0.44286462,66838.0,66837.0,0.158191]
[1722303243442,0.5864011,66838.0,66837.0,0.158191]
[1722303243645,0.5854011,66838.0,66837.0,0.158191]
[1722303243846,0.67597851,66838.0,66837.0,0.158191]
[1722303244045,0.49012748,66838.0,66837.0,0.158191]
[1722303244248,0.67590432,66838.0,66837.0,0.148462]
[1722303244589,0.72951148,66838.0,66837.0,0.148462]
[1722303244913,0.54138479,66838.0,66837.0,0.148462]
[1722303245130,0.77276879,66838.0,66837.0,0.148462]
[1722303245331,0.53338479,66838.0,66837.0,0.148462]
[1722303245482,0.98886879,66838.0,66837.0,0.009262]
[1722303245864,0.99986879,66838.0,66837.0,0.009262]
[1722303246064,0.97786879,66838.0,66837.0,0.009262]
[1722303246283,0.98886879,66838.0,66837.0,0.009262]
[1722303246503,0.99970325,66838.0,66837.0,0.009262]
[1722303246835,0.99931525,66838.0,66837.0,0.009262]
[1722303247128,1.4767918,66838.0,66837.0,0.009262]
[1722303247265,1.50257632,66838.0,66837.0,0.009262]
[1722303247465,1.51257632,66838.0,66837.0,0.009262]
[1722303247667,1.48910888,66838.0,66837.0,0.009262]
[1722303248115,1.47910888,66838.0,66837.0,0.009262]
[1722303248697,1.63032535,66838.0,66837.0,0.009262]
[1722303249145,1.73876388,66838.0,66837.0,0.009262]
[1722303249723,1.49937988,66838.0,66837.0,0.009262]
[1722303249872,1.48837988,66838.0,66837.0,0.009262]
[1722303250075,1.47737988,66838.0,66837.0,0.009262]
[1722303250291,1.42631104,66838.0,66837.0,0.009262]
[1722303250492,1.47737623,66838.0,66837.0,0.009262]
[1722303250936,1.50084546,66838.0,66837.0,0.009262]
[1722303251296,1.50084546,66838.0,66832.0,0.009262]
[1722303251297,1.09758,66833.0,66832.0,0.009262]
[1722303251647,0.618793,66831.0,66830.0,0.009262]
[1722303251800,1.48477619,66831.0,66830.0,0.009262]
[1722303252244,1.54517619,66831.0,66830.0,0.009262]
[1722303252446,1.54517619,66831.0,66818.0,0.009262]
[1722303252447,1.097679,66827.0,66818.0,0.009262]
[1722303252601,0.572278,66819.0,66818.0,0.009262]
[1722303252807,0.88579519,66819.0,66818.0,0.009262]
[1722303253012,1.36469919,66819.0,66818.0,0.009262]
[1722303253412,1.61019919,66819.0,66818.0,0.009262]
[1722303253610,1.76133825,66819.0,66818.0,0.009262]
[1722303254001,1.89566517,66819.0,66818.0,0.009262]
[1722303254323,2.05656921,66819.0,66818.0,0.009262]
[1722303254562,0.608692,66812.0,66810.0,0.009262]
[1722303254889,1.23577893,66812.0,66810.0,0.009262]
[1722303255214,1.5771009,66812.0,66810.0,0.009262]
[1722303255775,1.60057945,66812.0,66810.0,0.009262]
[1722303256021,1.6435009,66812.0,66810.0,0.009262]
[1722303256531,1.6565009,66812.0,66810.0,0.009262]
[1722303256761,1.34112395,66812.0,66810.0,0.009262]
[1722303256988,1.452848,66812.0,66810.0,0.009262]
[1722303257449,1.45284888,66812.0,66810.0,0.009262]
[1722303257694,1.43046347,66812.0,66810.0,0.009262]
[1722303258160,1.34112395,66812.0,66810.0,0.009262]
[1722303258384,1.43046341,66812.0,66810.0,0.009262]
[1722303258611,1.35112395,66812.0,66810.0,0.009262]
[1722303259076,1.59060095,66812.0,66810.0,0.009262]
[1722303259303,1.8408445,66812.0,66810.0,0.009262]
[1722303259523,1.85116571,66812.0,66810.0,0.009262]
[1722303259987,1.79915573,66812.0,66810.0,0.009262]
[1722303260237,1.097935,66811.0,66810.0,1e-08]
[1722303260467,1.097935,66811.0,66798.0,0.0150132]
[1722303260468,0.359286,66799.0,66798.0,0.0150132]
[1722303260687,1.074434,66799.0,66798.0,0.0150132]
[1722303261388,1.424229,66799.0,66798.0,0.0150132]
[1722303261652,1.58492332,66799.0,66798.0,0.0150132]
[1722303261885,1.57465232,66799.0,66798.0,0.0150132]
[1722303262569,1.59792332,66799.0,66798.0,0.0150132]
[1722303263523,1.62140588,66799.0,66798.0,0.0150132]
[1722303263783,1.78603892,66799.0,66798.0,0.0150132]
[1722303263997,1.78603892,66799.0,66787.0,0.090662]
[1722303263998,0.838446,66790.0,66787.0,0.090662]
[1722303264279,0.961446,66790.0,66787.0,0.090662]
[1722303265209,0.975446,66790.0,66787.0,0.090662]
[1722303266360,0.989446,66790.0,66787.0,0.090662]
[1722303266784,0.989446,66790.0,66787.0,0.009262]
[1722303266979,0.9989328,66790.0,66787.0,0.009262]
[1722303267132,1.11477777,66790.0,66787.0,0.009262]
[1722303268160,1.09129097,66790.0,66787.0,0.009262]
[1722303268370,1.1002273,66790.0,66787.0,0.009262]
[1722303268986,1.3133273,66790.0,66787.0,0.009262]
[1722303269790,1.5528833,66790.0,66787.0,0.009262]
[1722303270311,1.5628833,66790.0,66787.0,0.009262]
[1722303270512,1.5528833,66790.0,66787.0,0.009262]
[1722303271530,1.57636994,66790.0,66787.0,0.009262]
[1722303272254,1.74727398,66790.0,66787.0,0.009262]
[1722303272729,1.72378734,66790.0,66787.0,0.009262]
[1722303273915,1.70978734,66790.0,66787.0,0.009262]
[1722303274126,1.69951634,66790.0,66787.0,0.009262]
[1722303274327,1.71351634,66790.0,66787.0,0.009262]
[1722303274525,1.72378734,66790.0,66787.0,0.009262]
[1722303275246,1.77637851,66790.0,66787.0,0.009262]
[1722303275985,1.78586333,66790.0,66787.0,0.009262]
[1722303276328,1.7623763,66790.0,66787.0,0.009262]
[1722303276968,1.7521053,66790.0,66787.0,0.009262]
[1722303277314,1.7763763,66790.0,66787.0,0.009262]
[1722303278490,1.7623763,66790.0,66787.0,0.009262]
[1722303278851,1.70978734,66790.0,66787.0,0.009262]
[1722303279052,1.76298913,66790.0,66787.0,0.009262]
[1722303279366,1.74898913,66790.0,66787.0,0.009262]
[1722303279516,1.78647643,66790.0,66787.0,0.009262]
[1722303279863,1.77620543,66790.0,66787.0,0.009262]
[1722303280393,1.78647643,66790.0,66787.0,0.009262]
[1722303280758,1.80047643,66790.0,66787.0,0.009262]
[1722303281175,1.78647643,66790.0,66787.0,0.009262]
[1722303281730,1.80047643,66790.0,66787.0,0.009262]
[1722303281936,1.81447643,66790.0,66787.0,0.009262]
[1722303282211,1.80049573,66790.0,66787.0,0.009262]
[1722303282390,1.79100843,66790.0,66787.0,0.009262]
[1722303283174,1.78073743,66790.0,66787.0,0.009262]
[1722303283749,1.73873743,66790.0,66787.0,0.009262]
[1722303283976,1.75273743,66790.0,66787.0,0.009262]
[1722303284174,1.76300843,66790.0,66787.0,0.009262]
[1722303284591,1.85051821,66790.0,66787.0,0.009262]
[1722303284754,1.76300843,66790.0,66787.0,0.009262]
[1722303284955,1.75300843,66790.0,66787.0,0.009262]
[1722303285155,1.85446667,66790.0,66787.0,0.009262]
[1722303285349,1.77686722,66790.0,66787.0,0.009262]
[1722303285594,1.86432658,66790.0,66787.0,0.009262]
[1722303286055,1.85032658,66790.0,66787.0,0.009262]
[1722303286769,1.83632658,66790.0,66787.0,0.009262]
[1722303287193,1.85032658,66790.0,66787.0,0.009262]
[1722303287411,1.85405558,66790.0,66787.0,0.009262]
[1722303287861,1.86432658,66790.0,66787.0,0.009262]
[1722303288403,1.69342254,66790.0,66787.0,0.009262]
[1722303288575,1.70319415,66790.0,66789.0,0.069662]
[1722303288797,1.69319415,66790.0,66789.0,0.069662]
[1722303289654,1.44912513,66790.0,66789.0,0.069662]
[1722303290022,1.47712513,66790.0,66789.0,0.069662]
[1722303290669,1.45363815,66790.0,66789.0,0.069662]
[1722303290872,1.43963815,66790.0,66789.0,0.069662]
[1722303291080,1.99532719,66790.0,66789.0,0.009262]
[1722303291254,2.00559819,66790.0,66789.0,0.009262]
[1722303291679,1.86528734,66790.0,66789.0,0.009262]
[1722303291903,1.76492209,66790.0,66789.0,0.009262]
[1722303292299,1.77892209,66790.0,66789.0,0.009262]
[1722303292838,2.0044396,66790.0,66789.0,0.009262]
[1722303293193,2.0184396,66790.0,66789.0,0.009262]
[1722303293572,2.06310557,66790.0,66789.0,0.009262]
[1722303294007,2.08659353,66790.0,66789.0,0.009262]
[1722303294636,2.04192756,66790.0,66789.0,0.009262]
[1722303295157,2.04186196,66790.0,66789.0,0.009262]
[1722303295354,2.04186196,66790.0,66781.0,0.009262]
[1722303295355,0.202263,66782.0,66781.0,0.009262]
[1722303295527,0.202263,66782.0,66767.0,1.0]
[1722303295528,0.359436,66771.0,66768.0,0.00130757]
[1722303295749,0.9652867,66771.0,66768.0,0.00130757]
[1722303295908,0.9652867,66771.0,66767.0,1.0]
[1722303295909,1.4675347,66771.0,66767.0,1.0]
[1722303296110,1.78852329,66771.0,66767.0,1.0]
[1722303296515,1.77825229,66771.0,66767.0,1.0]
[1722303296871,1.82298395,66771.0,66767.0,1.0]
[1722303297075,1.82298395,66771.0,66767.0,0.175145]
[1722303297076,1.098628,66768.0,66767.0,0.175145]
[1722303297274,1.49636436,66768.0,66767.0,0.055325]
[1722303297425,1.49636436,66768.0,66750.0,0.0765]
[1722303297426,0.859056,66763.0,66750.0,0.0765]
[1722303297629,1.70346874,66763.0,66750.0,0.0765]
[1722303297832,1.76035079,66763.0,66750.0,0.0765]
[1722303298089,1.63856874,66763.0,66750.0,0.0765]
[1722303298266,1.76544555,66763.0,66750.0,0.0765]
[1722303298675,1.74195114,66763.0,66750.0,0.0765]
[1722303298851,1.80910624,66763.0,66750.0,0.0765]
[1722303299370,1.74195114,66763.0,66750.0,0.0765]
[1722303299586,1.088889,66752.0,66750.0,0.0765]
[1722303299789,1.73890407,66752.0,66748.0,0.078]
[1722303300532,1.7496319,66752.0,66748.0,0.078]
[1722303300732,1.7393609,66752.0,66748.0,0.078]
[1722303300937,1.68423994,66752.0,66748.0,0.078]
[1722303301130,1.73936237,66752.0,66748.0,0.078]
[1722303301849,1.73936237,66752.0,66744.0,0.009273]
[1722303301850,2.01282753,66752.0,66744.0,0.009273]
[1722303302244,2.24228153,66752.0,66744.0,0.009273]
[1722303302398,2.16172753,66752.0,66744.0,0.009273]
[1722303302598,1.089002,66745.0,66744.0,0.009273]
[1722303302947,1.74975767,66745.0,66744.0,0.009273]
[1722303303551,1.75056859,66745.0,66744.0,0.009273]
[1722303303860,1.74056859,66745.0,66744.0,0.009273]
[1722303304004,1.75429759,66745.0,66744.0,0.009273]
[1722303304410,1.76456859,66745.0,66744.0,0.009273]
[1722303305563,2.00428659,66745.0,66744.0,0.009273]
[1722303305963,1.76456859,66745.0,66744.0,0.009273]
[1722303306119,1.78807405,66745.0,66744.0,0.009273]
[1722303306530,1.9718587,66745.0,66744.0,0.009273]
[1722303306731,2.02804168,66745.0,66744.0,0.009273]
[1722303306938,2.01404168,66745.0,66744.0,0.009273]
[1722303307139,2.02804168,66745.0,66744.0,0.009273]
[1722303307520,2.00453622,66745.0,66744.0,0.009273]
[1722303308354,2.151442,66745.0,66744.0,0.009273]
[1722303308676,2.151442,66745.0,66744.0,0.00762309]
[1722303308677,2.165442,66745.0,66744.0,0.00762309]
[1722303308876,0.859434,66733.0,66732.0,0.0150132]
[1722303309033,1.425024,66733.0,66732.0,0.0150132]
[1722303309232,1.58592804,66733.0,66732.0,0.0150132]
[1722303310525,1.60943679,66733.0,66732.0,0.0150132]
[1722303310904,1.64722804,66733.0,66732.0,0.0150132]
[1722303311108,2.17679344,66733.0,66732.0,0.0150132]
[1722303311475,2.17696586,66733.0,66732.0,0.0150132]
[1722303312434,2.19096586,66733.0,66732.0,0.0150132]
[1722303312592,2.17696586,66733.0,66732.0,0.0150132]
[1722303313016,2.20504641,66733.0,66732.0,0.0150132]
[1722303313385,1.099357,66723.0,66715.0,0.06]
[1722303313584,1.56309004,66723.0,66716.0,0.00130757]
[1722303313810,1.60960198,66723.0,66716.0,0.00130757]
[1722303314037,1.59960198,66723.0,66722.0,0.089473]
[1722303314182,1.41080662,66723.0,66722.0,0.089473]
[1722303314386,1.41053562,66723.0,66722.0,0.089473]
[1722303315195,1.38702368,66723.0,66722.0,0.089473]
[1722303315531,1.38729468,66723.0,66722.0,0.089473]
[1722303315728,1.39729468,66723.0,66722.0,0.089473]
[1722303315928,1.41129468,66723.0,66722.0,0.089473]
[1722303316330,1.41129468,66723.0,66722.0,0.009273]
[1722303316331,1.62439468,66723.0,66722.0,0.009273]
[1722303316949,1.63839468,66723.0,66722.0,0.009273]
[1722303317883,1.62439468,66723.0,66722.0,0.009273]
[1722303318024,1.85951104,66723.0,66722.0,0.009273]
[1722303318235,0.839489,66707.0,66706.0,0.0824]
[1722303318488,1.0724498,66707.0,66706.0,0.0824]
[1722303318731,1.0724498,66707.0,66706.0,0.22334716]
[1722303318732,0.699635,66707.0,66706.0,0.22334716]
[1722303319862,1.07946,66700.0,66696.0,0.0817]
[1722303320060,0.25063304,66707.0,66696.0,0.0817]
[1722303320061,0.36969109,66697.0,66696.0,0.0817]
[1722303320284,0.36969109,66697.0,66677.0,0.009273]
[1722303320285,0.01,66679.0,66678.0,0.144]
[1722303320661,1.062942,66679.0,66678.0,0.144]
[1722303320866,1.426168,66679.0,66678.0,0.0817]
[1722303320997,1.69309524,66679.0,66678.0,0.0817]
[1722303321192,1.69309524,66679.0,66677.0,0.009273]
[1722303321193,1.100086,66678.0,66677.0,0.009273]
[1722303321409,1.4490662,66678.0,66677.0,0.009273]
[1722303321738,1.36344804,66678.0,66677.0,0.009273]
[1722303321886,1.12348904,66678.0,66677.0,0.009273]
[1722303322478,0.256979,66678.0,66677.0,0.149873]
[1722303322680,0.233979,66678.0,66677.0,0.149873]
[1722303322882,0.497465,66678.0,66677.0,0.149873]
[1722303323181,0.487938,66678.0,66677.0,0.149873]
[1722303323628,0.114,66678.0,66677.0,0.159602]
[1722303323806,0.128,66678.0,66677.0,0.159602]
[1722303324008,0.114,66678.0,66677.0,0.159602]
[1722303324217,0.014,66678.0,66677.0,0.159602]
[1722303324466,0.145979,66678.0,66677.0,0.159602]
[1722303324672,0.119979,66678.0,66677.0,0.159602]
[1722303324947,0.119976,66680.0,66677.0,0.159602]
[1722303325202,0.370938,66678.0,66677.0,0.159602]
[1722303325770,0.359938,66678.0,66677.0,0.149873]
[1722303325985,0.130979,66678.0,66677.0,0.159602]
[1722303326379,0.011,66678.0,66677.0,0.159602]
[1722303326602,0.011,66678.0,66677.0,0.149873]
[1722303326603,0.68151484,66678.0,66677.0,0.149873]
[1722303326770,0.67051484,66678.0,66677.0,0.149873]
[1722303327215,0.68051484,66678.0,66677.0,0.149873]
[1722303327570,0.63342264,66678.0,66677.0,0.149873]
[1722303328202,0.04352564,66678.0,66677.0,0.149873]
[1722303328391,0.16350464,66678.0,66677.0,0.149873]
[1722303329073,0.64342264,66678.0,66677.0,0.149873]
[1722303329278,0.64342264,66678.0,66677.0,0.009273]
[1722303329279,1.57354804,66678.0,66677.0,0.009273]
[1722303329519,1.50728336,66678.0,66677.0,0.009273]
[1722303330529,1.49728336,66678.0,66677.0,0.009273]
[1722303330729,1.50728336,66678.0,66677.0,0.009273]
[1722303331702,1.51682124,66678.0,66677.0,0.009273]
[1722303332303,1.75678024,66678.0,66677.0,0.009273]
[1722303332504,1.78030762,66678.0,66677.0,0.009273]
[1722303332706,1.75678024,66678.0,66677.0,0.009273]
[1722303333231,1.51682124,66678.0,66677.0,0.009273]
[1722303334339,1.75678024,66678.0,66677.0,0.009273]
[1722303334824,1.76705124,66678.0,66677.0,0.009273]
[1722303335128,2.00701024,66678.0,66677.0,0.009273]
[1722303335390,2.00701024,66678.0,66672.0,9e-05]
[1722303335391,1.089896,66673.0,66672.0,9e-05]
[1722303335556,1.36352904,66673.0,66672.0,9e-05]
[1722303335822,1.39791418,66673.0,66672.0,9e-05]
[1722303335995,1.40818518,66673.0,66672.0,9e-05]
[1722303336943,1.38465567,66673.0,66672.0,9e-05]
[1722303337142,1.54734999,66673.0,66672.0,9e-05]
[1722303337343,1.09028,66666.0,66661.0,0.0787]
[1722303337561,1.33674004,66666.0,66661.0,0.0787]
[1722303337918,1.34755105,66666.0,66661.0,0.0787]
[1722303339176,1.58755305,66666.0,66661.0,0.0787]
[1722303339377,1.73824737,66666.0,66661.0,0.0787]
[1722303339626,1.74851837,66666.0,66661.0,0.0787]
[1722303339815,1.34755105,66666.0,66661.0,0.0787]
[1722303340214,1.37108152,66666.0,66661.0,0.0787]
[1722303341349,1.38008202,66666.0,66661.0,0.0787]
[1722303341773,1.37455155,66666.0,66661.0,0.0787]
[1722303341974,1.61455355,66666.0,66662.0,0.00130757]
[1722303342214,0.620303,66663.0,66662.0,0.00130757]
[1722303342550,0.620303,66663.0,66656.0,0.00130757]
[1722303342551,0.840119,66657.0,66656.0,0.00130757]
[1722303342799,1.54073084,66657.0,66656.0,0.00130757]
[1722303342971,1.54073084,66657.0,66655.0,0.009284]
[1722303342972,0.600095,66656.0,66655.0,0.009284]
[1722303343170,1.11376604,66656.0,66655.0,0.009284]
[1722303343387,0.4938628,66656.0,66655.0,0.009284]
[1722303343530,0.4938628,66656.0,66655.0,0.01059157]
[1722303343736,0.4938628,66656.0,66655.0,0.009284]
[1722303344168,0.7339008,66656.0,66655.0,0.009284]
[1722303344371,0.73375743,66656.0,66655.0,0.009284]
[1722303344970,1.0947064,66656.0,66655.0,0.009284]
[1722303345195,0.84313567,66656.0,66655.0,0.009284]
[1722303345367,1.07117367,66656.0,66655.0,0.009284]
[1722303345555,1.08217367,66656.0,66655.0,0.009284]
[1722303345762,1.09317367,66656.0,66655.0,0.009284]
[1722303346015,1.08217367,66656.0,66655.0,0.009284]
[1722303346417,1.08117367,66656.0,66655.0,0.009284]
[1722303346636,1.14262763,66656.0,66655.0,0.009284]
[1722303347429,1.14262527,66656.0,66655.0,0.009284]
[1722303348035,1.13262527,66656.0,66655.0,0.009284]
[1722303348450,1.14562527,66656.0,66655.0,0.009284]
[1722303348657,1.53629631,66656.0,66655.0,0.009284]
[1722303348856,1.54329631,66656.0,66655.0,0.009284]
[1722303349061,1.54329631,66656.0,66637.0,0.00130757]
[1722303349062,0.01,66644.0,66637.0,0.0627]
[1722303349257,0.061,66649.0,66637.0,0.0627]
[1722303349258,0.573254,66638.0,66637.0,0.0627]
[1722303349464,1.11498306,66638.0,66637.0,0.0627]
[1722303349812,1.24853803,66638.0,66637.0,0.0627]
[1722303349924,1.39923235,66638.0,66637.0,0.0627]
[1722303350365,1.33778654,66638.0,66637.0,0.0627]
[1722303350543,1.04144004,66638.0,66637.0,0.0627]
[1722303350740,1.04145255,66638.0,66637.0,0.0627]
[1722303351084,1.04145387,66638.0,66637.0,0.0627]
[1722303351309,0.97999222,66638.0,66637.0,0.0627]
[1722303351879,1.0413697,66638.0,66637.0,0.0627]
[1722303352126,0.240153,66624.0,66623.0,0.1434]
[1722303352341,0.700382,66624.0,66623.0,0.1434]
[1722303352539,0.460229,66624.0,66623.0,0.1434]
[1722303352812,0.71086191,66624.0,66623.0,0.1434]
[1722303353035,0.73440567,66624.0,66623.0,0.1434]
[1722303353313,0.11047991,66624.0,66623.0,0.1434]
[1722303353611,0.01047991,66624.0,66623.0,0.153129]
[1722303354213,0.12007,66628.0,66627.0,0.091929]
[1722303354419,0.360209,66628.0,66627.0,0.1445]
[1722303354623,0.78084714,66628.0,66627.0,0.1445]
[1722303354891,0.71081324,66628.0,66627.0,0.154229]
[1722303355088,0.47067424,66628.0,66627.0,0.154229]
[1722303355848,0.47467424,66628.0,66627.0,0.154229]
[1722303356056,0.49821681,66628.0,66627.0,0.154229]
[1722303356654,0.47467424,66628.0,66627.0,0.154229]
[1722303357252,0.47467424,66628.0,66627.0,0.1445]
[1722303357455,0.78629366,66628.0,66627.0,0.154229]
[1722303358619,1.02643266,66628.0,66627.0,0.1445]
[1722303358755,1.04943266,66628.0,66627.0,0.1445]
[1722303359582,1.04943266,66628.0,66623.0,0.009729]
[1722303359583,0.120084,66620.0,66619.0,0.08]
[1722303359953,0.120084,66620.0,66614.0,0.06450757]
[1722303359954,0.600465,66615.0,66614.0,0.1432]
[1722303360138,0.623465,66615.0,66614.0,0.1432]
[1722303360319,0.87410243,66615.0,66614.0,0.1432]
[1722303360549,0.63391643,66615.0,66614.0,0.1432]
[1722303360757,0.72981891,66615.0,66614.0,0.08]
[1722303360946,0.65746315,66615.0,66614.0,0.08]
[1722303361137,0.89764915,66615.0,66614.0,0.08]
[1722303361341,0.87410243,66615.0,66614.0,0.08]
[1722303361579,0.840686,66612.0,66610.0,0.009284]
[1722303361746,1.13469251,66612.0,66610.0,0.009284]
[1722303362074,1.53585383,66612.0,66610.0,0.009284]
[1722303362308,1.83885105,66612.0,66610.0,0.009284]
[1722303362504,1.57838405,66612.0,66610.0,0.009284]
[1722303362693,1.16455501,66612.0,66610.0,0.009284]
[1722303362896,1.18755501,66612.0,66610.0,0.009284]
[1722303363897,1.33818805,66612.0,66610.0,0.009284]
[1722303364136,1.57838405,66612.0,66610.0,0.009284]
[1722303364345,1.60193563,66612.0,66610.0,0.009284]
[1722303364892,1.60193563,66612.0,66611.0,0.004284]
[1722303365073,1.44624131,66612.0,66611.0,0.004284]
[1722303365650,1.42268973,66612.0,66611.0,0.004284]
[1722303366439,1.42268973,66612.0,66599.0,0.0150132]
[1722303366440,1.090981,66606.0,66599.0,0.0150132]
[1722303366564,1.76800426,66606.0,66599.0,0.0150132]
[1722303366771,2.05204123,66606.0,66599.0,0.0150132]
[1722303366975,1.81182323,66606.0,66599.0,0.0150132]
[1722303367178,2.05204123,66606.0,66599.0,0.0150132]
[1722303367963,1.81182323,66606.0,66599.0,0.0150132]
[1722303368075,1.6846835,66606.0,66599.0,0.0150132]
[1722303368274,1.67583211,66606.0,66599.0,0.0150132]
[1722303368480,1.68583211,66606.0,66599.0,0.0150132]
[1722303368680,1.69983211,66606.0,66599.0,0.0150132]
[1722303368889,1.83652643,66606.0,66599.0,0.0150132]
[1722303369470,1.81297184,66606.0,66599.0,0.0150132]
[1722303369797,1.80270084,66606.0,66599.0,0.0150132]
[1722303369997,1.82697184,66606.0,66599.0,0.0150132]
[1722303370374,1.81670084,66606.0,66599.0,0.0150132]
[1722303370973,1.81193144,66606.0,66599.0,0.0150132]
[1722303371337,1.82593144,66606.0,66599.0,0.0150132]
[1722303371542,1.83663682,66606.0,66599.0,0.0150132]
[1722303371788,1.82636582,66606.0,66599.0,0.0150132]
[1722303371964,1.77598161,66606.0,66599.0,0.0150132]
[1722303372164,1.83592047,66606.0,66599.0,0.0150132]
[1722303372411,2.10040947,66606.0,66599.0,0.0150132]
[1722303372764,2.08640947,66606.0,66599.0,0.0150132]
[1722303373171,2.14840947,66606.0,66605.0,0.00380188]
[1722303373393,2.14840947,66606.0,66605.0,8.8e-07]
[1722303373607,2.13840947,66606.0,66605.0,8.8e-07]
[1722303373811,2.14840947,66606.0,66605.0,8.8e-07]
[1722303374666,2.14885955,66606.0,66605.0,8.8e-07]
[1722303375126,1.101351,66600.0,66599.0,0.0150132]
[1722303375336,1.77310856,66600.0,66599.0,0.0150132]
[1722303375540,2.09234856,66600.0,66599.0,0.0150132]
[1722303375741,2.08234856,66600.0,66599.0,0.0150132]
[1722303375939,2.09234856,66600.0,66599.0,0.0150132]
[1722303376348,1.85210856,66600.0,66599.0,0.0150132]
[1722303376567,1.64270246,66600.0,66599.0,0.0150132]
[1722303376769,1.42960246,66600.0,66599.0,0.0150132]
[1722303376988,0.01005529,66600.0,66599.0,0.1654422]
[1722303377326,0.254219,66606.0,66601.0,0.009729]
[1722303377496,0.014,66606.0,66605.0,0.14657616]
[1722303377900,0.014,66606.0,66605.0,0.22577616]
[1722303378870,0.014,66606.0,66605.0,0.22708373]
[1722303379069,0.014,66606.0,66605.0,0.34719473]
[1722303379271,0.014,66606.0,66605.0,0.33615816]
[1722303379474,0.014,66606.0,66605.0,0.34588716]
[1722303379711,0.014,66606.0,66605.0,0.82633116]
[1722303379712,0.02404007,66606.0,66605.0,0.82633116]
[1722303379917,0.014,66606.0,66605.0,0.58610916]
[1722303380978,0.120095,66614.0,66613.0,0.009729]
[1722303381178,0.120097,66613.0,66609.0,0.00130757]
[1722303381446,0.240189,66614.0,66609.0,0.00130757]
[1722303381674,0.120101,66611.0,66609.0,0.02022665]
[1722303381874,0.240184,66616.0,66609.0,0.02022665]
[1722303382069,0.01011152,66610.0,66609.0,0.01891908]
[1722303382276,0.120095,66614.0,66610.0,0.00130757]
[1722303382723,0.240183,66616.0,66610.0,0.00130757]
[1722303382724,0.13020852,66613.0,66610.0,0.00130757]
[1722303382889,0.01,66611.0,66610.0,0.00130757]
[1722303383530,0.01,66611.0,66610.0,0.14680757]
[1722303383531,0.02011152,66611.0,66610.0,0.14680757]
[1722303383765,0.01,66611.0,66610.0,0.1455]
[1722303384034,0.01,66611.0,66610.0,0.74601]
[1722303384261,0.120086,66619.0,66610.0,0.385704]
[1722303384488,0.120082,66621.0,66615.0,0.19543916]
[1722303384712,0.01011152,66618.0,66615.0,0.19543916]
[1722303385018,0.1,66622.0,66615.0,0.07534716]
[1722303385248,0.01011152,66617.0,66616.0,0.505773]
[1722303385457,0.1,66624.0,66620.0,0.08]
[1722303385672,0.00926271,66634.0,66622.0,0.31550616]
[1722303385883,0.02,66640.0,66622.0,0.19542716]
[1722303385884,0.01011152,66623.0,66622.0,0.19542716]
[1722303386110,0.260096,66640.0,66622.0,0.12008]
[1722303386111,0.12007,66628.0,66622.0,0.12008]
[1722303386312,0.250096,66640.0,66623.0,0.120078]
[1722303386313,0.240118,66634.0,66623.0,0.120078]
[1722303386606,0.120064,66631.0,66623.0,0.01891908]
[1722303386817,0.120066,66630.0,66625.0,0.120074]
[1722303387023,0.240109,66637.0,66629.0,0.120066]
[1722303387165,0.24011,66636.0,66630.0,0.08]